bitfinex/quotes_BTCUSD_20250115
["timestamp","ask_amount","ask_price","bid_price","bid_amount"]
[1736957242319,0.025,99418.0,99417.0,0.00779424]
[1736957242661,0.001,99418.0,99417.0,0.00579424]
[1736957242990,0.002,99418.0,99417.0,1.50779424]
[1736957243176,0.001,99418.0,99417.0,1.50379424]
[1736957243379,0.002,99418.0,99417.0,1.5157973]
[1736957243579,0.002,99418.0,99417.0,1.51200306]
[1736957243788,0.002,99418.0,99417.0,0.01200306]
[1736957244637,0.002,99418.0,99417.0,1.51200306]
[1736957245404,0.002,99418.0,99417.0,1.61622998]
[1736957245600,0.002,99418.0,99417.0,1.67623539]
[1736957246049,0.002,99418.0,99417.0,1.61622998]
[1736957246399,0.001,99418.0,99417.0,1.50700306]
[1736957246610,0.001,99418.0,99417.0,1.61122998]
[1736957246972,0.001,99418.0,99417.0,1.50700306]
[1736957247339,0.001,99418.0,99417.0,1.50900306]
[1736957247802,0.20115,99429.0,99417.0,1.50900306]
[1736957247803,0.023,99428.0,99418.0,0.20117]
[1736957248010,0.009,99418.0,99417.0,1.70917506]
[1736957248188,0.023,99428.0,99417.0,1.5]
[1736957248403,0.001,99418.0,99417.0,1.505]
[1736957248802,0.002,99418.0,99417.0,1.512]
[1736957249429,0.002,99418.0,99417.0,1.67623233]
[1736957249798,0.00068545,99448.0,99437.0,0.20113]
[1736957250007,0.023,99446.0,99430.0,0.201145]
[1736957250219,0.023,99444.0,99430.0,0.201145]
[1736957250428,0.023,99438.0,99421.0,1.00532824]
[1736957250601,0.00068545,99437.0,99427.0,0.201152]
[1736957250914,0.001,99428.0,99418.0,0.201169]
[1736957251117,0.00068545,99435.0,99423.0,0.20116]
[1736957251426,0.00068545,99435.0,99430.0,0.001]
[1736957251578,0.201138,99434.0,99423.0,0.17951214]
[1736957251798,0.402292,99430.0,99417.0,0.2029675]
[1736957251983,0.001,99428.0,99418.0,0.009]
[1736957252226,0.00168545,99428.0,99421.0,0.006]
[1736957252431,0.01566155,99431.0,99421.0,0.006]
[1736957252683,0.01566155,99431.0,99430.0,0.201146]
[1736957253013,0.01566155,99431.0,99430.0,0.206146]
[1736957253219,0.01566155,99431.0,99430.0,1.706146]
[1736957253579,0.01566155,99431.0,99430.0,1.505]
[1736957253790,0.02442042,99431.0,99430.0,1.505]
[1736957254169,0.02442042,99431.0,99430.0,1.701146]
[1736957254571,0.02542042,99431.0,99430.0,1.707146]
[1736957255141,0.02542042,99431.0,99430.0,1.715146]
[1736957255342,0.02642042,99431.0,99430.0,1.715146]
[1736957255483,0.02642042,99431.0,99430.0,1.95877833]
[1736957256494,0.02542042,99431.0,99430.0,1.95277833]
[1736957256899,0.01739247,99431.0,99430.0,1.95377833]
[1736957257097,0.01739247,99431.0,99430.0,1.96369656]
[1736957257349,0.01639247,99431.0,99430.0,1.94577833]
[1736957257554,0.01639247,99431.0,99430.0,1.94677833]
[1736957257759,0.02039247,99431.0,99430.0,1.94677833]
[1736957258506,0.02039247,99431.0,99430.0,1.703146]
[1736957259038,0.02039247,99431.0,99430.0,1.502]
[1736957259240,0.02039247,99431.0,99430.0,0.002]
[1736957259749,0.02107792,99431.0,99430.0,0.002]
[1736957260154,0.01339247,99431.0,99430.0,0.001]
[1736957260349,0.01339247,99431.0,99430.0,0.00807044]
[1736957260599,0.01339247,99431.0,99430.0,0.01307044]
[1736957260830,0.02745263,99431.0,99430.0,0.01307044]
[1736957261084,0.02345263,99431.0,99430.0,0.00707044]
[1736957261302,0.02445263,99431.0,99430.0,1.51607044]
[1736957261483,0.02445263,99431.0,99430.0,1.52007044]
[1736957261635,0.02345263,99431.0,99430.0,1.67530277]
[1736957261850,0.02445263,99431.0,99430.0,1.81250277]
[1736957262280,0.02530763,99431.0,99430.0,1.81250277]
[1736957262655,0.001855,99431.0,99430.0,1.80850277]
[1736957263077,0.002855,99431.0,99430.0,1.81750277]
[1736957263306,0.002855,99431.0,99430.0,0.31748509]
[1736957263882,0.001855,99431.0,99430.0,0.30848509]
[1736957264102,0.000855,99431.0,99430.0,0.30048509]
[1736957264311,0.000855,99431.0,99430.0,1.81048454]
[1736957264464,0.009855,99431.0,99430.0,1.81148454]
[1736957264681,0.009855,99431.0,99430.0,1.80948454]
[1736957265082,0.018855,99431.0,99430.0,1.81048454]
[1736957265975,0.019855,99431.0,99430.0,1.81148454]
[1736957268052,0.019855,99431.0,99430.0,1.96148454]
[1736957268256,0.201056,99475.0,99431.0,0.15]
[1736957268257,0.00068545,99466.0,99431.0,0.15]
[1736957268468,0.402122,99472.0,99451.0,0.06000541]
[1736957268697,0.224067,99469.0,99454.0,0.201097]
[1736957268873,0.00068545,99468.0,99450.0,0.06000541]
[1736957269097,0.00068545,99468.0,99461.0,1.5]
[1736957269259,0.023,99471.0,99461.0,1.5]
[1736957269260,0.00068545,99470.0,99461.0,1.5]
[1736957269455,0.00068545,99469.0,99462.0,0.0057601]
[1736957269681,0.001,99466.0,99462.0,0.0057601]
[1736957270091,0.06299459,99463.0,99462.0,0.0057601]
[1736957270339,0.0479,99452.0,99431.0,0.201143]
[1736957270541,0.11664086,99450.0,99431.0,1.701143]
[1736957270714,0.02368545,99449.0,99432.0,0.00481701]
[1736957270951,0.023,99443.0,99432.0,0.00481701]
[1736957271219,0.201126,99440.0,99432.0,0.00481701]
[1736957271394,0.20181145,99440.0,99432.0,0.00481701]
[1736957271625,0.00068545,99440.0,99433.0,1.5]
[1736957271835,0.023,99441.0,99433.0,1.5]
[1736957272035,0.00068545,99442.0,99434.0,0.00483022]
[1736957273094,0.02368545,99443.0,99434.0,0.00483022]
[1736957273224,0.023,99441.0,99434.0,0.00483022]
[1736957273432,0.00068545,99442.0,99434.0,0.00483022]
[1736957273635,0.00068545,99442.0,99434.0,0.00983022]
[1736957273816,0.023,99446.0,99435.0,0.201136]
[1736957274014,0.02368545,99446.0,99434.0,0.00983022]
[1736957274214,0.00068545,99445.0,99436.0,0.00495453]
[1736957274574,0.00947401,99445.0,99435.0,0.00495561]
[1736957274838,0.00947401,99445.0,99436.0,0.00495453]
[1736957275019,0.023,99443.0,99436.0,0.00495453]
[1736957275171,0.023,99443.0,99433.0,1.5]
[1736957275371,0.023,99443.0,99434.0,0.0049567]
[1736957275575,0.023,99441.0,99435.0,0.006]
[1736957275801,0.023,99441.0,99436.0,0.00495048]
[1736957276589,0.023,99439.0,99436.0,0.00495048]
[1736957276789,0.023,99441.0,99436.0,0.00495048]
[1736957277013,0.023,99439.0,99436.0,0.00495048]
[1736957277214,0.023,99441.0,99436.0,0.01095048]
[1736957277630,0.023,99441.0,99436.0,0.00495048]
[1736957277840,0.023,99441.0,99436.0,0.01310007]
[1736957278007,0.023,99439.0,99436.0,0.01310007]
[1736957278190,0.023,99439.0,99436.0,0.00510007]
[1736957278384,0.023,99441.0,99436.0,0.01210007]
[1736957278603,0.00068545,99440.0,99436.0,0.01710007]
[1736957278801,0.224132,99437.0,99436.0,0.01710007]
[1736957279313,0.224132,99437.0,99436.0,0.01210007]
[1736957279521,0.224132,99437.0,99436.0,0.01710007]
[1736957279739,0.224132,99437.0,99436.0,0.01214959]
[1736957279954,0.224132,99437.0,99436.0,0.00014959]
[1736957280393,0.24303756,99437.0,99436.0,0.00514959]
[1736957280597,0.24303756,99437.0,99436.0,0.00014959]
[1736957280902,0.24303756,99437.0,99436.0,0.00314959]
[1736957281476,0.38725907,99437.0,99436.0,0.00614959]
[1736957281695,0.53725907,99437.0,99436.0,0.00614959]
[1736957283000,0.53725907,99437.0,99436.0,0.00314959]
[1736957283202,0.53725907,99437.0,99436.0,0.00014959]
[1736957283408,0.54397907,99437.0,99436.0,0.00514959]
[1736957283818,0.64397907,99437.0,99436.0,0.00314959]
[1736957284029,0.76727907,99437.0,99436.0,0.00314959]
[1736957284561,0.76727907,99437.0,99436.0,0.00014959]
[1736957284968,0.75864038,99437.0,99436.0,0.00214959]
[1736957285167,0.7899916,99437.0,99436.0,0.00214959]
[1736957285372,0.7899916,99437.0,99418.0,0.0022755]
[1736957285373,0.56816259,99419.0,99418.0,0.0022755]
[1736957285577,0.56816259,99419.0,99389.0,0.00179424]
[1736957285578,0.59119959,99401.0,99389.0,0.00179424]
[1736957285949,0.70214651,99401.0,99400.0,0.00189441]
[1736957286154,0.75184651,99401.0,99400.0,0.00189441]
[1736957286366,0.49120959,99396.0,99389.0,0.00179424]
[1736957286578,0.62515651,99396.0,99395.0,0.00189442]
[1736957286783,0.51422159,99390.0,99389.0,0.00179424]
[1736957286981,0.61844851,99390.0,99389.0,0.00179424]
[1736957287186,0.71917385,99390.0,99389.0,0.00179424]
[1736957287391,0.49123759,99382.0,99360.0,0.00179403]
[1736957287593,0.61846451,99382.0,99360.0,0.00179403]
[1736957287764,0.64078985,99382.0,99360.0,0.00179403]
[1736957287976,0.24128059,99361.0,99360.0,0.00179403]
[1736957288180,0.52522751,99361.0,99360.0,0.00194366]
[1736957288384,0.55096952,99361.0,99360.0,0.00194366]
[1736957288586,0.65096952,99361.0,99360.0,0.00194366]
[1736957288995,0.66098536,99361.0,99360.0,0.00194366]
[1736957289577,0.66098536,99361.0,99360.0,0.00294366]
[1736957290794,0.63524335,99361.0,99360.0,0.00294366]
[1736957291181,0.63524335,99361.0,99360.0,0.00194366]
[1736957292635,0.63524335,99361.0,99360.0,0.0070596]
[1736957293244,0.63524335,99361.0,99360.0,1.50194366]
[1736957293664,0.63524335,99361.0,99360.0,1.5070596]
[1736957294313,0.63524335,99361.0,99360.0,0.0070596]
[1736957294515,0.59524876,99361.0,99360.0,0.0070596]
[1736957294663,0.59524876,99361.0,99360.0,0.00194366]
[1736957294664,0.63524335,99361.0,99360.0,0.00194366]
[1736957295812,0.66098536,99361.0,99360.0,0.00194366]
[1736957296177,0.63524335,99361.0,99360.0,0.00194366]
[1736957297283,0.48852876,99361.0,99360.0,0.00194366]
[1736957297519,0.53524335,99361.0,99360.0,0.00194366]
[1736957298121,0.21130184,99361.0,99360.0,0.00194366]
[1736957298328,0.21198729,99361.0,99360.0,0.00194366]
[1736957298708,0.33921421,99361.0,99360.0,0.00194366]
[1736957298938,0.37852335,99361.0,99360.0,0.00194366]
[1736957299166,0.37852335,99361.0,99360.0,0.00394366]
[1736957299367,0.52852335,99361.0,99360.0,0.00394366]
[1736957300091,0.54903949,99361.0,99360.0,0.00594366]
[1736957300293,0.64903949,99361.0,99360.0,0.00594366]
[1736957300534,0.62852335,99361.0,99360.0,0.00394366]
[1736957300933,0.62852335,99361.0,99360.0,0.00494366]
[1736957301172,0.62852335,99361.0,99360.0,0.00194366]
[1736957301375,0.62852335,99361.0,99360.0,0.00494366]
[1736957301885,0.65426536,99361.0,99360.0,0.00194366]
[1736957302310,0.62852335,99361.0,99360.0,0.00194366]
[1736957303009,0.13999459,99359.0,99358.0,1.1e-07]
[1736957303215,0.16299459,99339.0,99338.0,0.00179214]
[1736957303416,0.69695151,99339.0,99338.0,0.00179214]
[1736957303626,0.224379,99315.0,99314.0,0.06]
[1736957304033,0.25012101,99315.0,99314.0,0.06049976]
[1736957304236,0.231099,99315.0,99314.0,0.06049976]
[1736957304861,0.224379,99315.0,99314.0,0.06049976]
[1736957305089,0.24106557,99315.0,99314.0,0.06049976]
[1736957305298,0.24106557,99315.0,99314.0,0.06249976]
[1736957307017,0.24106557,99315.0,99314.0,0.06349976]
[1736957308600,0.17542951,99324.0,99314.0,0.06349976]
[1736957308852,0.201294,99357.0,99314.0,0.06349976]
[1736957308853,0.20134,99334.0,99315.0,0.1288]
[1736957309063,0.17542951,99350.0,99315.0,0.1288]
[1736957309064,0.351311,99349.0,99317.0,0.06000541]
[1736957309276,0.10422692,99348.0,99332.0,1.5]
[1736957309472,0.00672,99347.0,99337.0,0.201333]
[1736957309677,0.00068545,99357.0,99329.0,0.06000541]
[1736957309885,0.17542951,99350.0,99338.0,0.00462137]
[1736957310090,0.00068545,99349.0,99338.0,0.00462137]
[1736957310299,0.01021269,99358.0,99343.0,0.0795]
[1736957310563,0.00068545,99357.0,99345.0,0.06000541]
[1736957310768,0.03999459,99374.0,99343.0,0.0795]
[1736957310769,0.00068545,99368.0,99356.0,0.201296]
[1736957310973,0.00068545,99368.0,99360.0,0.201286]
[1736957311182,0.00672,99371.0,99365.0,0.201276]
[1736957311393,0.00672,99371.0,99361.0,1.50664811]
[1736957311576,0.00068545,99370.0,99366.0,0.00663997]
[1736957311785,0.00068545,99370.0,99362.0,0.201284]
[1736957311909,0.00068545,99373.0,99362.0,0.201284]
[1736957312109,0.00068545,99372.0,99362.0,0.201284]
[1736957313197,0.00672,99376.0,99362.0,0.201284]
[1736957313411,0.20194245,99375.0,99362.0,0.207284]
[1736957313601,0.00672,99376.0,99371.0,0.201265]
[1736957313732,0.00851634,99381.0,99371.0,0.201265]
[1736957313932,0.20304134,99381.0,99368.0,0.201271]
[1736957314175,0.00068545,99380.0,99374.0,0.201259]
[1736957314390,0.00179634,99381.0,99368.0,0.201271]
[1736957314592,0.00068545,99380.0,99372.0,0.201262]
[1736957314765,0.00068545,99380.0,99368.0,0.201271]
[1736957315186,0.201251,99378.0,99368.0,0.004]
[1736957315361,0.00068545,99377.0,99368.0,0.004]
[1736957315770,0.201266,99371.0,99368.0,0.004]
[1736957315967,0.201265,99372.0,99368.0,0.004]
[1736957316166,0.20127,99369.0,99368.0,0.004]
[1736957316381,0.00068545,99370.0,99356.0,0.06000541]
[1736957316581,0.00068545,99370.0,99368.0,0.001]
[1736957316833,0.023,99379.0,99368.0,0.001]
[1736957316834,0.201258,99375.0,99368.0,0.004]
[1736957316972,0.201261,99373.0,99368.0,0.004]
[1736957317165,0.00068545,99372.0,99368.0,0.007]
[1736957317365,0.00068545,99372.0,99361.0,0.201286]
[1736957317673,0.00068545,99372.0,99361.0,0.004]
[1736957318066,0.00068545,99372.0,99360.0,1.5]
[1736957318304,0.01011169,99383.0,99368.0,0.004]
[1736957318592,0.201251,99378.0,99368.0,0.004]
[1736957318839,0.201269,99370.0,99368.0,0.011]
[1736957319039,0.00068545,99369.0,99368.0,0.004]
[1736957319178,0.00068545,99373.0,99368.0,0.004]
[1736957319386,0.201265,99371.0,99368.0,0.004]
[1736957319589,0.20127,99369.0,99368.0,0.004]
[1736957319786,0.20195545,99369.0,99368.0,0.004]
[1736957320037,0.00068545,99369.0,99368.0,0.011]
[1736957320213,0.00179634,99381.0,99380.0,0.26125241]
[1736957320419,0.00179634,99381.0,99375.0,0.201257]
[1736957320618,0.00179634,99381.0,99370.0,0.201267]
[1736957320822,0.17611496,99380.0,99368.0,0.006]
[1736957321187,0.00179634,99381.0,99371.0,0.06000541]
[1736957321430,0.00179634,99381.0,99374.0,0.201259]
[1736957322323,0.00179634,99381.0,99371.0,1.76126941]
[1736957322946,0.00179634,99381.0,99375.0,0.201256]
[1736957323384,0.00179634,99381.0,99372.0,0.201263]
[1736957323790,0.00179634,99381.0,99376.0,0.201254]
[1736957324171,0.00179634,99381.0,99372.0,0.201263]
[1736957324544,0.201247,99380.0,99371.0,1.5]
[1736957324747,0.20193245,99380.0,99371.0,1.5]
[1736957324947,0.20193245,99380.0,99366.0,0.26127941]
[1736957325156,0.17611496,99380.0,99359.0,0.20129]
[1736957325356,0.17542951,99370.0,99358.0,0.0764]
[1736957325579,0.00068545,99369.0,99355.0,0.06000541]
[1736957325775,0.00068545,99369.0,99356.0,1.76130141]
[1736957325982,0.201272,99368.0,99356.0,1.5]
[1736957326246,0.00068545,99367.0,99356.0,1.5]
[1736957326439,0.00068545,99367.0,99359.0,0.003]
[1736957326631,0.00068545,99367.0,99356.0,1.5]
[1736957326872,0.201266,99371.0,99357.0,0.201294]
[1736957327082,0.201266,99371.0,99356.0,1.5]
[1736957327083,0.201266,99371.0,99356.0,1.507]
[1736957327290,0.03999459,99391.0,99362.0,0.06000541]
[1736957327492,0.201252,99378.0,99364.0,0.201278]
[1736957327697,0.00179634,99381.0,99366.0,0.06000541]
[1736957327943,0.00068545,99380.0,99366.0,0.06000541]
[1736957328188,0.00068545,99380.0,99367.0,1.701274]
[1736957328918,0.20193245,99380.0,99367.0,1.701274]
[1736957329131,0.201251,99378.0,99367.0,1.5]
[1736957329353,0.201255,99376.0,99367.0,1.5]
[1736957329898,0.00068545,99378.0,99367.0,1.505]
[1736957330097,0.01873398,99379.0,99376.0,0.40251]
[1736957330310,0.01873398,99379.0,99378.0,0.26125641]
[1736957330506,0.01873398,99379.0,99378.0,1.37081157]
[1736957330706,0.00179634,99381.0,99378.0,1.37081157]
[1736957330707,0.00179634,99381.0,99379.0,0.0795]
[1736957330909,0.00179634,99381.0,99380.0,0.36547933]
[1736957331445,0.00179634,99381.0,99380.0,1.76125241]
[1736957332656,0.00179634,99381.0,99380.0,1.77025241]
[1736957333436,0.00179634,99381.0,99380.0,1.77625241]
[1736957336494,0.00179634,99381.0,99380.0,1.88047933]
[1736957337907,0.00179634,99381.0,99380.0,1.87447933]
[1736957338705,0.00179634,99381.0,99380.0,1.86547933]
[1736957338926,0.00179634,99381.0,99380.0,1.87447933]
[1736957339698,0.00179634,99381.0,99380.0,1.88147933]
[1736957340171,0.00179634,99381.0,99380.0,1.89157768]
[1736957340320,0.00179634,99381.0,99380.0,1.88457768]
[1736957340721,0.00179634,99381.0,99380.0,1.88557768]
[1736957341760,0.00179634,99381.0,99380.0,1.87657768]
[1736957341969,0.00179634,99381.0,99380.0,2.02757768]
[1736957342168,0.201156,99425.0,99416.0,0.06000541]
[1736957342399,0.201166,99421.0,99416.0,0.06000541]
[1736957342519,0.201156,99425.0,99416.0,0.06000541]
[1736957342758,0.201156,99425.0,99417.0,1.5]
[1736957342926,0.201167,99420.0,99417.0,1.5]
[1736957343151,0.201156,99425.0,99417.0,1.5]
[1736957343353,0.023,99421.0,99398.0,0.06000541]
[1736957343554,0.201224,99392.0,99384.0,0.06000541]
[1736957343749,0.201224,99392.0,99380.0,0.0795]
[1736957343750,0.201227,99390.0,99385.0,0.06000541]
[1736957344084,0.201227,99390.0,99380.0,0.0795]
[1736957344085,0.201231,99388.0,99380.0,1.5]
[1736957344296,0.201227,99390.0,99385.0,0.06000541]
[1736957344503,0.20189845,99397.0,99385.0,0.06000541]
[1736957344710,0.003,99392.0,99391.0,0.06000541]
[1736957344911,0.201225,99391.0,99382.0,0.06000541]
[1736957345231,0.201225,99391.0,99383.0,1.5]
[1736957345232,0.00068545,99390.0,99383.0,1.5]
[1736957345609,0.201229,99389.0,99383.0,1.5]
[1736957345817,0.00014941,99397.0,99389.0,0.06000541]
[1736957346016,0.00014941,99397.0,99390.0,0.06000541]
[1736957346619,0.201215,99396.0,99390.0,0.06000541]
[1736957348046,0.202216,99396.0,99390.0,0.06500541]
[1736957348392,0.202216,99396.0,99390.0,0.005]
[1736957348393,0.00068545,99395.0,99390.0,0.005]
[1736957348595,0.00068545,99395.0,99390.0,0.012]
[1736957348993,0.00068545,99395.0,99390.0,0.007]
[1736957349453,0.201234,99387.0,99383.0,1.5]
[1736957350022,0.02368545,99386.0,99384.0,0.00458715]
[1736957350225,0.201237,99385.0,99384.0,0.00458715]
[1736957350453,0.20124,99384.0,99381.0,0.0008554]
[1736957350655,0.351243,99382.0,99381.0,0.0008554]
[1736957350997,0.47846992,99382.0,99381.0,0.0008554]
[1736957351353,0.201286,99361.0,99359.0,1.4990294]
[1736957351557,0.20129,99359.0,99355.0,0.06000541]
[1736957351769,0.00068545,99358.0,99345.0,0.277817]
[1736957351995,0.201294,99357.0,99352.0,0.06000541]
[1736957352205,0.201292,99359.0,99352.0,0.06000541]
[1736957352607,0.201298,99355.0,99352.0,0.00049976]
[1736957352818,0.00068545,99354.0,99352.0,0.00049976]
[1736957353033,0.00068545,99354.0,99352.0,0.06050517]
[1736957353186,0.00068545,99354.0,99352.0,0.06750517]
[1736957353396,0.001,99357.0,99352.0,0.06750517]
[1736957353635,0.20196745,99363.0,99352.0,0.06850517]
[1736957353811,0.40324945,99363.0,99353.0,0.0045807]
[1736957354021,0.001,99354.0,99353.0,0.0045807]
[1736957354326,0.001,99354.0,99353.0,0.00461643]
[1736957354327,0.2023,99354.0,99353.0,0.00461643]
[1736957354525,0.2023,99354.0,99353.0,1.50461643]
[1736957354727,0.001,99354.0,99353.0,1.50461643]
[1736957355299,0.201282,99363.0,99353.0,1.50461643]
[1736957355501,0.12663963,99370.0,99353.0,1.50461643]
[1736957355644,0.201264,99372.0,99359.0,0.06000541]
[1736957355645,0.001,99363.0,99359.0,0.06000541]
[1736957356254,0.201239,99385.0,99363.0,0.06000541]
[1736957356459,0.201218,99395.0,99383.0,0.201241]
[1736957356670,0.19305019,99410.0,99387.0,0.06000541]
[1736957356671,0.11675019,99400.0,99387.0,0.06000541]
[1736957356843,0.201211,99398.0,99388.0,0.06000541]
[1736957357062,0.201211,99398.0,99397.0,1.5]
[1736957357199,0.31793719,99410.0,99397.0,1.5]
[1736957357401,0.201187,99410.0,99397.0,1.50456891]
[1736957357627,0.15068545,99409.0,99397.0,1.50456891]
[1736957357935,0.201195,99406.0,99397.0,1.50456891]
[1736957358058,0.201201,99403.0,99397.0,1.50456891]
[1736957358264,0.201193,99407.0,99397.0,1.50456891]
[1736957358468,0.15,99407.0,99397.0,1.56457432]
[1736957358668,0.00014944,99410.0,99402.0,0.26120641]
[1736957358984,0.00014944,99410.0,99403.0,0.0045624]
[1736957359292,0.00014944,99410.0,99403.0,0.201201]
[1736957359622,0.00014944,99410.0,99402.0,0.06000541]
[1736957359623,0.001,99407.0,99402.0,0.06000541]
[1736957359762,0.001,99407.0,99402.0,0.06800541]
[1736957359965,0.00014944,99410.0,99402.0,0.06800541]
[1736957360202,0.00014944,99410.0,99402.0,0.06000541]
[1736957360391,0.00114944,99410.0,99409.0,0.06000541]
[1736957360976,0.00114944,99410.0,99407.0,0.06000541]
[1736957361558,0.00014944,99410.0,99407.0,0.06000541]
[1736957361773,0.00114944,99410.0,99407.0,0.06000541]
[1736957362377,0.00014944,99410.0,99408.0,0.26119641]
[1736957362603,0.00114944,99410.0,99409.0,0.16423233]
[1736957362821,0.00114944,99410.0,99409.0,0.16523829]
[1736957362975,0.00114944,99410.0,99409.0,1.66523829]
[1736957363199,0.00114944,99410.0,99409.0,1.67096156]
[1736957363402,0.00014944,99410.0,99409.0,1.67096156]
[1736957364005,0.00014944,99410.0,99409.0,1.74966156]
[1736957364595,0.00014944,99410.0,99409.0,1.74916156]
[1736957364795,0.00114944,99410.0,99409.0,1.74916156]
[1736957365260,0.00014944,99410.0,99409.0,1.75816156]
[1736957365460,0.00014944,99410.0,99409.0,1.74916156]
[1736957365673,0.00714944,99410.0,99409.0,1.75016156]
[1736957365879,0.00714944,99410.0,99409.0,1.75116156]
[1736957366020,0.00014944,99410.0,99409.0,1.75016156]
[1736957366419,0.00714944,99410.0,99409.0,1.75116156]
[1736957367069,0.00179634,99425.0,99424.0,0.36066341]
[1736957367282,0.00179634,99425.0,99424.0,1.60410679]
[1736957367863,0.00179634,99425.0,99424.0,3.10410679]
[1736957368065,0.00179634,99425.0,99424.0,3.35410679]
[1736957368415,3.4e-07,99425.0,99424.0,3.35410679]
[1736957368674,0.07903136,99450.0,99436.0,0.30950541]
[1736957368675,5e-07,99437.0,99436.0,0.30950541]
[1736957368957,0.07903136,99450.0,99449.0,0.68931341]
[1736957369165,0.00179718,99480.0,99469.0,0.26057241]
[1736957369358,0.03049926,99470.0,99469.0,1.37012757]
[1736957369661,0.03049926,99470.0,99469.0,2.87681498]
[1736957369867,0.03049926,99470.0,99469.0,2.87478506]
[1736957371515,0.03049926,99470.0,99469.0,2.88491722]
[1736957371757,0.03649926,99470.0,99469.0,2.88591722]
[1736957372165,0.03649926,99470.0,99469.0,2.89491722]
[1736957372372,0.03649926,99470.0,99469.0,2.88591722]
[1736957372577,0.03649926,99470.0,99469.0,2.88691722]
[1736957372784,0.03649926,99470.0,99469.0,1.27255814]
[1736957373782,0.03829603,99470.0,99469.0,1.37678506]
[1736957374583,0.03829603,99470.0,99469.0,1.27255814]
[1736957376189,0.03829603,99470.0,99469.0,1.07149114]
[1736957376433,0.03829603,99470.0,99469.0,2.57149114]
[1736957377056,0.03829603,99470.0,99469.0,2.67571806]
[1736957378049,0.03829603,99470.0,99469.0,1.07149114]
[1736957378253,0.03829603,99470.0,99469.0,0.0661629]
[1736957378516,0.03829603,99470.0,99469.0,0.17038982]
[1736957378724,0.03829603,99470.0,99469.0,1.67038982]
[1736957379025,0.03229603,99470.0,99469.0,1.66938982]
[1736957379492,0.03529603,99470.0,99469.0,1.66938982]
[1736957380518,0.03529603,99470.0,99469.0,1.60988441]
[1736957380740,0.03229603,99470.0,99469.0,1.5651629]
[1736957380945,0.03929603,99470.0,99469.0,1.5661629]
[1736957381355,0.03229603,99470.0,99469.0,1.5641629]
[1736957381783,0.04229603,99470.0,99469.0,1.5651629]
[1736957381995,0.03329603,99470.0,99469.0,1.5641629]
[1736957382192,0.03229603,99470.0,99469.0,1.5641629]
[1736957382509,0.03329603,99470.0,99469.0,1.5731629]
[1736957382639,0.03329603,99470.0,99469.0,1.5641629]
[1736957382841,0.03429603,99470.0,99469.0,1.67738982]
[1736957383046,0.03529603,99470.0,99469.0,2.91541806]
[1736957383236,0.00179718,99480.0,99479.0,0.26055241]
[1736957383441,3.4e-07,99481.0,99480.0,0.48820541]
[1736957383733,2e-08,99481.0,99480.0,0.63943233]
[1736957383884,2e-08,99481.0,99480.0,0.64619534]
[1736957384095,2e-08,99481.0,99480.0,2.14619534]
[1736957384297,2e-08,99481.0,99480.0,2.17283143]
[1736957384949,2e-08,99481.0,99480.0,1.98668993]
[1736957385177,2e-08,99481.0,99480.0,2.14619534]
[1736957385365,2e-08,99481.0,99480.0,2.14719534]
[1736957385497,0.00500002,99481.0,99480.0,2.15723677]
[1736957385902,0.00500002,99481.0,99480.0,2.26313677]
[1736957386167,0.00500002,99481.0,99480.0,2.15723677]
[1736957387534,0.00491272,99481.0,99480.0,2.15723677]
[1736957388348,0.00179677,99506.0,99501.0,0.23820541]
[1736957388549,0.00179677,99506.0,99501.0,1.54876357]
[1736957388747,0.00179677,99506.0,99501.0,1.55539191]
[1736957388951,0.00179677,99506.0,99501.0,1.44876357]
[1736957389152,0.00179677,99506.0,99501.0,2.94876357]
[1736957389450,0.0197645,99502.0,99501.0,2.94876357]
[1736957389651,0.0197645,99502.0,99501.0,2.95896444]
[1736957389854,0.0197645,99502.0,99501.0,2.88510808]
[1736957390271,0.0197645,99502.0,99501.0,2.82560267]
[1736957390711,0.0197645,99502.0,99501.0,2.88510808]
[1736957390917,0.0157645,99502.0,99501.0,2.88510808]
[1736957391298,0.0152645,99502.0,99501.0,2.88710808]
[1736957391496,0.0152645,99502.0,99501.0,2.88810808]
[1736957391696,0.0152645,99502.0,99501.0,2.88510808]
[1736957392162,0.0152645,99502.0,99501.0,2.90310808]
[1736957392439,0.0152645,99502.0,99501.0,2.88510808]
[1736957392599,0.0152645,99502.0,99501.0,2.89410808]
[1736957392800,0.0152645,99502.0,99501.0,1.40310808]
[1736957393206,0.0152645,99502.0,99501.0,1.39290721]
[1736957393508,0.0152645,99502.0,99501.0,2.78868029]
[1736957393917,0.0152645,99502.0,99501.0,2.57867729]
[1736957394278,0.02441446,99502.0,99501.0,2.51917188]
[1736957394484,0.02441446,99502.0,99501.0,2.58767729]
[1736957394701,0.02441446,99502.0,99501.0,2.57867729]
[1736957394913,0.02391446,99502.0,99501.0,2.57383365]
[1736957395123,0.02391446,99502.0,99501.0,2.56483365]
[1736957395298,0.02391446,99502.0,99501.0,2.57383365]
[1736957395768,0.03839254,99502.0,99501.0,2.57383365]
[1736957395966,0.03839254,99502.0,99501.0,2.66906057]
[1736957396103,0.03839254,99502.0,99501.0,2.67806057]
[1736957397240,0.02391446,99502.0,99501.0,2.67806057]
[1736957398413,0.02391446,99502.0,99501.0,2.68706057]
[1736957398867,0.02571017,99502.0,99501.0,2.68706057]
[1736957399000,0.02571017,99502.0,99501.0,2.67806057]
[1736957399218,0.02521017,99502.0,99501.0,2.67806057]
[1736957399571,0.02521017,99502.0,99501.0,2.57383365]
[1736957399727,0.02521017,99502.0,99501.0,2.67806057]
[1736957400354,0.01606021,99502.0,99501.0,2.66906057]
[1736957400555,0.01606021,99502.0,99501.0,2.67806057]
[1736957400771,0.01606021,99502.0,99501.0,2.66906057]
[1736957400969,0.01606021,99502.0,99501.0,2.67806057]
[1736957401194,0.01606021,99502.0,99501.0,2.68706057]
[1736957401551,0.01606021,99502.0,99501.0,2.67806057]
[1736957402001,0.01606021,99502.0,99501.0,2.68706057]
[1736957402209,0.01606021,99502.0,99501.0,1.18706057]
[1736957402638,0.01606021,99502.0,99501.0,2.68706057]
[1736957403458,0.01606021,99502.0,99501.0,2.66906057]
[1736957403662,0.201013,99496.0,99495.0,0.05950541]
[1736957403861,0.201015,99495.0,99485.0,0.05950541]
[1736957404060,0.201015,99495.0,99488.0,0.05950541]
[1736957404294,0.00068545,99494.0,99489.0,1.5]
[1736957404539,0.201017,99494.0,99489.0,1.5]